bitfinex-derivatives/quotes_BNBF0:USTF0_20260114
["timestamp","ask_amount","ask_price","bid_price","bid_amount"]
[1768394833368,1.121,934.55,933.47,0.18620878]
[1768394833670,0.7754835,934.54,933.47,0.18620878]
[1768394833872,0.7754835,934.53,933.47,0.18620878]
[1768394834169,0.7754835,934.52,933.47,0.18620878]
[1768394834368,1.121,934.55,933.47,0.18620878]
[1768394834670,0.77548564,934.54,933.47,0.18620878]
[1768394834870,0.77548564,934.53,933.47,0.18620878]
[1768394835069,0.77548564,934.52,933.47,0.18620878]
[1768394835271,1.121,934.55,933.47,0.18620878]
[1768394835569,0.77548814,934.54,933.47,0.18620878]
[1768394835772,0.77548814,934.53,933.47,0.18620878]
[1768394835972,0.77548814,934.52,933.47,0.18620878]
[1768394836170,1.121,934.55,933.47,0.18620878]
[1768394836373,0.7754902,934.54,933.47,0.18620878]
[1768394836571,0.7754902,934.53,933.47,0.18620878]
[1768394836775,0.7754902,934.52,933.47,0.18620878]
[1768394837072,1.121,934.55,933.47,0.18620878]
[1768394837273,0.77549101,934.54,933.47,0.18620878]
[1768394837476,0.77549101,934.53,933.47,0.18620878]
[1768394837775,0.77549101,934.52,933.47,0.18620878]
[1768394837973,1.121,934.55,933.47,0.18620878]
[1768394838176,0.7754943,934.54,933.47,0.18620878]
[1768394838477,0.7754943,934.53,933.47,0.18620878]
[1768394838678,0.7754943,934.52,933.47,0.18620878]
[1768394838975,1.121,934.55,933.47,0.18620878]
[1768394839174,0.77549831,934.54,933.47,0.18620878]
[1768394839375,0.77549831,934.53,933.47,0.18620878]
[1768394839578,0.77549831,934.52,933.47,0.18620878]
[1768394839878,1.121,934.55,933.47,0.18620878]
[1768394840075,0.77550253,934.54,933.47,0.18620878]
[1768394840275,0.77550253,934.53,933.47,0.18620878]
[1768394840576,0.77550253,934.52,933.47,0.18620878]
[1768394840775,1.121,934.55,933.47,0.18620878]
[1768394841076,0.7755073,934.54,933.47,0.18620878]
[1768394841274,0.7755073,934.53,933.47,0.18620878]
[1768394841473,0.7755073,934.52,933.47,0.18620878]
[1768394841676,1.121,934.55,933.47,0.18620878]
[1768394841976,0.77551269,934.54,933.47,0.18620878]
[1768394842176,0.77551269,934.53,933.47,0.18620878]
[1768394842382,0.77551269,934.52,933.47,0.18620878]
[1768394842581,1.121,934.55,933.47,0.18620878]
[1768394842781,0.77551882,934.54,933.47,0.18620878]
[1768394843077,0.77551882,934.53,933.47,0.18620878]
[1768394843278,0.77551882,934.52,933.47,0.18620878]
[1768394843479,1.121,934.55,933.47,0.18620878]
[1768394843682,0.77552583,934.54,933.47,0.18620878]
[1768394843882,0.77552583,934.53,933.47,0.18620878]
[1768394844082,0.77552583,934.52,933.47,0.18620878]
[1768394844380,1.121,934.55,933.47,0.18620878]
[1768394844582,0.77553396,934.54,933.47,0.18620878]
[1768394844879,0.77553396,934.53,933.47,0.18620878]
[1768394845080,0.77553396,934.52,933.47,0.18620878]
[1768394845280,1.121,934.55,933.47,0.18620878]
[1768394845584,0.7755436,934.54,933.47,0.18620878]
[1768394845783,0.7755436,934.53,933.47,0.18620878]
[1768394845984,0.7755436,934.52,933.47,0.18620878]
[1768394846185,1.121,934.55,933.47,0.18620878]
[1768394846386,0.77555486,934.54,933.47,0.18620878]
[1768394846585,0.77555486,934.53,933.47,0.18620878]
[1768394846884,0.77555486,934.52,933.47,0.18620878]
[1768394847079,1.121,934.55,933.47,0.18620878]
[1768394847285,0.77555549,934.54,933.47,0.18620878]
[1768394847580,0.77555549,934.53,933.47,0.18620878]
[1768394847784,0.77555549,934.52,933.47,0.18620878]
[1768394847980,1.121,934.55,933.47,0.18620878]
[1768394848185,0.77557148,934.54,933.47,0.18620878]
[1768394848386,0.77560388,934.53,933.47,0.18620878]
[1768394848686,0.77560388,934.52,933.47,0.18620878]
[1768394848986,1.121,934.55,933.47,0.18620878]
[1768394849186,0.77560397,934.54,933.47,0.18620878]
[1768394849383,0.77560397,934.53,933.47,0.18620878]
[1768394849583,0.77560397,934.52,933.47,0.18620878]
[1768394849781,1.121,934.55,933.47,0.18620878]
[1768394849982,0.77560454,934.54,933.47,0.18620878]
[1768394850183,0.77560454,934.53,933.47,0.18620878]
[1768394850482,0.77560454,934.52,933.47,0.18620878]
[1768394850686,1.121,934.55,933.47,0.18620878]
[1768394850886,0.77560521,934.54,933.47,0.18620878]
[1768394851181,0.77560521,934.53,933.47,0.18620878]
[1768394851382,0.77560521,934.52,933.47,0.18620878]
[1768394851582,1.121,934.55,933.47,0.18620878]
[1768394851784,0.77560596,934.54,933.47,0.18620878]
[1768394852087,0.77560596,934.53,933.47,0.18620878]
[1768394852386,0.77560596,934.52,933.47,0.18620878]
[1768394852588,1.121,934.55,933.47,0.18620878]
[1768394852883,0.77560686,934.54,933.47,0.18620878]
[1768394853083,0.77560686,934.53,933.47,0.18620878]
[1768394853283,1.121,934.55,933.47,0.18620878]
[1768394853284,0.77560686,934.52,933.47,0.18620878]
[1768394853485,1.121,934.55,933.47,0.18620878]
[1768394853686,0.77560793,934.54,933.47,0.18620878]
[1768394853888,0.77560793,934.53,933.47,0.18620878]
[1768394854085,0.77560793,934.52,933.47,0.18620878]
[1768394854290,1.121,934.55,933.47,0.18620878]
[1768394854591,0.77560937,934.54,933.47,0.18620878]
[1768394854790,0.77560937,934.53,933.47,0.18620878]
[1768394854987,0.77560937,934.52,933.47,0.18620878]
[1768394855186,1.121,934.55,933.47,0.18620878]
[1768394855490,0.77561174,934.54,933.47,0.18620878]
[1768394855685,0.77561174,934.53,933.47,0.18620878]
[1768394855886,0.77561174,934.52,933.47,0.18620878]
[1768394856085,1.121,934.55,933.47,0.18620878]
[1768394856287,0.77561179,934.54,933.47,0.18620878]
[1768394856490,0.77561179,934.53,933.47,0.18620878]
[1768394856690,0.77561179,934.52,933.47,0.18620878]
[1768394856990,1.121,934.55,933.47,0.18620878]
[1768394857186,0.77561308,934.54,933.47,0.18620878]
[1768394857387,0.77561308,934.53,933.47,0.18620878]
[1768394857686,0.77561308,934.52,933.47,0.18620878]
[1768394857890,1.121,934.55,933.47,0.18620878]
[1768394858189,0.77561342,934.54,933.47,0.18620878]
[1768394858387,0.77561342,934.53,933.47,0.18620878]
[1768394858687,0.77561342,934.52,933.47,0.18620878]
[1768394858890,1.121,934.55,933.47,0.18620878]
[1768394859088,0.77561342,934.54,933.47,0.18620878]
[1768394859387,0.77561342,934.53,933.47,0.18620878]
[1768394859586,0.77561342,934.52,933.47,0.18620878]
[1768394859786,0.77561342,934.51,933.47,0.18620878]
[1768394859988,1.121,934.55,933.47,0.18620878]
[1768394860291,0.77600954,934.54,933.47,0.18620878]
[1768394860591,0.77600954,934.53,933.34,2.628152]
[1768394860788,0.77600954,934.52,933.57,0.18619234]
[1768394861090,0.77600954,934.51,933.57,0.18619234]
[1768394861288,1.121,934.55,933.57,0.18619234]
[1768394861489,0.77600954,934.54,933.57,0.18619234]
[1768394861688,0.77600954,934.53,933.57,0.18619234]
[1768394861890,0.77600954,934.52,933.57,0.18619234]
[1768394862089,0.77600954,934.51,933.57,0.18619234]
[1768394862392,1.121,934.55,933.57,0.18619234]
[1768394862688,0.77600926,934.54,933.57,0.18619234]
[1768394862893,0.77600926,934.53,933.57,0.18619234]
[1768394863094,0.77600926,934.52,933.57,0.18619234]
[1768394863298,0.77600926,934.51,933.57,0.18619234]
[1768394863494,1.121,934.55,933.57,0.18619234]
[1768394863694,0.77600926,934.54,933.57,0.18619234]
[1768394863994,0.77600926,934.53,933.57,0.18619234]
[1768394864296,0.77600926,934.52,933.57,0.18619234]
[1768394864491,0.77600926,934.51,933.57,0.18619234]
[1768394864694,1.121,934.55,933.57,0.18619234]
[1768394864993,0.77600928,934.54,933.57,0.18619234]
[1768394865194,0.77600928,934.53,933.57,0.18619234]
[1768394865398,0.77600928,934.52,933.57,0.18619234]
[1768394865593,0.77600928,934.51,933.57,0.18619234]
[1768394865795,1.121,934.55,933.57,0.18619234]
[1768394865996,0.77600142,934.54,933.57,0.18619234]
[1768394866196,0.77600142,934.53,933.57,0.18619234]
[1768394866496,0.77600142,934.52,933.57,0.18619234]
[1768394866697,0.77600142,934.51,933.57,0.18619234]
[1768394866898,1.121,934.55,933.57,0.18619234]
[1768394867098,0.77599948,934.54,933.57,0.18619234]
[1768394867395,0.77599948,934.53,933.57,0.18619234]
[1768394867693,0.77599948,934.52,933.57,0.18619234]
[1768394867897,0.77599948,934.51,933.57,0.18619234]
[1768394868095,1.121,934.55,933.57,0.18619234]
[1768394868294,0.77599779,934.54,933.57,0.18619234]
[1768394868595,0.77599779,934.53,933.57,0.18619234]
[1768394868794,0.77599779,934.52,933.57,0.18619234]
[1768394868995,0.77599779,934.51,933.57,0.18619234]
[1768394869197,1.121,934.55,933.57,0.18619234]
[1768394869500,0.77599641,934.54,933.57,0.18619234]
[1768394869698,0.77599641,934.53,933.57,0.18619234]
[1768394869901,0.77599641,934.52,933.57,0.18619234]
[1768394870200,0.77599641,934.51,933.57,0.18619234]
[1768394870401,1.121,934.55,933.57,0.18619234]
[1768394870598,0.77599424,934.54,933.57,0.18619234]
[1768394870795,0.77599424,934.53,933.57,0.18619234]
[1768394870997,0.77599424,934.52,933.57,0.18619234]
[1768394871199,0.77599424,934.51,933.57,0.18619234]
[1768394871398,1.121,934.55,933.57,0.18619234]
[1768394871600,0.77599319,934.54,933.57,0.18619234]
[1768394871799,0.77599319,934.53,933.57,0.18619234]
[1768394872002,0.77599319,934.52,933.57,0.18619234]
[1768394872203,0.77599319,934.51,933.57,0.18619234]
[1768394872401,0.18617341,935.38,933.57,0.18619234]
[1768394872605,0.77599238,935.37,934.01,1.587304]
[1768394872803,0.18617341,935.38,934.01,1.587304]
[1768394872804,0.77599238,935.36,934.01,1.587304]
[1768394873002,0.77599238,935.35,934.01,1.587304]
[1768394873204,0.77599238,935.34,934.01,1.587304]
[1768394873402,0.77599238,935.33,934.01,1.587304]
[1768394873602,0.77599238,935.32,934.01,1.587304]
[1768394873803,0.77599238,935.31,934.01,1.587304]
[1768394874004,0.77599238,935.3,934.01,1.587304]
[1768394874206,0.77599238,935.29,934.01,1.587304]
[1768394874405,0.77599238,935.28,934.01,1.587304]
[1768394874599,0.77599238,935.27,934.01,1.587304]
[1768394874800,0.77599238,935.26,934.01,1.587304]
[1768394875002,0.77599238,935.25,934.01,1.587304]
[1768394875205,0.77599238,935.24,934.01,1.587304]
[1768394875404,0.77599238,935.23,934.01,1.587304]
[1768394875604,0.77599238,935.22,934.01,1.587304]
[1768394875906,0.77599238,935.21,934.01,1.587304]
[1768394876103,0.77599238,935.2,934.01,1.587304]
[1768394876307,0.77599238,935.19,934.01,1.587304]
[1768394876503,0.77599238,935.18,934.01,1.587304]
[1768394876708,0.77599238,935.17,934.01,1.587304]
[1768394877009,0.77599238,935.16,934.01,1.587304]
[1768394877208,0.77599238,935.15,934.01,1.587304]
[1768394877408,0.77599238,935.14,934.01,1.587304]
[1768394877704,0.77599238,935.13,934.01,1.587304]
[1768394877904,0.77599238,935.12,934.01,1.587304]
[1768394878110,0.77599238,935.11,934.01,1.587304]
[1768394878309,0.77599238,935.1,934.01,1.587304]
[1768394878508,0.77599238,935.09,934.01,1.587304]
[1768394878808,0.77599238,935.08,934.01,1.587304]
[1768394879012,0.77599238,935.07,934.01,1.587304]
[1768394879207,0.77599238,935.06,934.01,1.587304]
[1768394879511,0.77599238,935.05,934.01,1.587304]
[1768394879711,0.77599238,935.04,934.01,1.587304]
[1768394879912,0.77599238,935.03,934.01,1.587304]
[1768394880110,0.77599238,935.02,934.01,1.587304]
[1768394880309,0.77599238,935.01,934.01,1.587304]
[1768394880510,0.77599238,935.0,934.01,1.587304]
[1768394880712,1.193,935.26,934.01,1.587304]
[1768394880713,0.77599238,934.99,934.01,1.587304]
[1768394880911,0.77599238,934.98,934.01,1.587304]
[1768394881112,0.77599238,934.97,934.01,1.587304]
[1768394881315,0.77599238,934.96,934.01,1.587304]
[1768394881615,0.77599238,934.95,934.01,1.587304]
[1768394881814,0.77599238,934.94,934.01,1.587304]
[1768394882015,0.77599238,934.93,934.01,1.587304]
[1768394882210,0.77599238,934.92,934.01,1.587304]
[1768394882415,0.77599238,934.91,934.01,1.587304]
[1768394882613,0.77599238,934.9,934.01,1.587304]
[1768394882812,0.77599238,934.89,934.01,1.587304]
[1768394883013,0.77599238,934.88,934.01,1.587304]
[1768394883213,0.77599238,934.87,934.01,1.587304]
[1768394883416,0.77599238,934.86,934.01,1.587304]
[1768394883713,0.77599238,934.85,934.01,1.587304]
[1768394883914,0.77599238,934.84,934.01,1.587304]
[1768394884115,0.77599238,934.83,934.01,1.587304]
[1768394884312,0.77599238,934.82,934.01,1.587304]
[1768394884515,0.77599238,934.81,934.01,1.587304]
[1768394884717,0.77599238,934.8,934.01,1.587304]
[1768394884914,0.77599238,934.79,934.01,1.587304]
[1768394885116,0.77599238,934.78,934.01,1.587304]
[1768394885315,0.77599238,934.77,934.01,1.587304]
[1768394885518,0.77599238,934.76,934.01,1.587304]
[1768394885718,0.77599238,934.75,934.01,1.587304]
[1768394885913,0.77599238,934.74,934.01,1.587304]
[1768394886114,0.77599238,934.73,934.01,1.587304]
[1768394886317,0.77599238,934.72,934.01,1.587304]
[1768394886519,0.77599238,934.71,934.01,1.587304]
[1768394886717,0.77599238,934.7,934.01,1.587304]
[1768394886919,0.77599238,934.69,934.01,1.587304]
[1768394887115,0.77599238,934.68,934.01,1.587304]
[1768394887416,0.77599238,934.67,934.01,1.587304]
[1768394887619,0.77599238,934.66,934.01,1.587304]
[1768394887815,0.77599238,934.65,934.01,1.587304]
[1768394888017,0.77599238,934.64,934.01,1.587304]
[1768394888218,0.77599238,934.63,934.01,1.587304]
[1768394888417,0.77599238,934.62,934.01,1.587304]
[1768394888622,0.77599238,934.61,934.01,1.587304]
[1768394888824,0.77599238,934.6,934.01,1.587304]
[1768394889023,0.77599238,934.59,934.01,1.587304]
[1768394889320,0.77599238,934.58,934.01,1.587304]
[1768394889520,0.77599238,934.57,934.01,1.587304]
[1768394889719,0.77599238,934.56,934.01,1.587304]
[1768394889923,0.77599238,934.55,934.01,1.587304]
[1768394890222,0.77599238,934.54,934.01,1.587304]
[1768394890423,0.77599238,934.53,934.01,1.587304]
[1768394890624,0.77599238,934.52,934.01,1.587304]
[1768394890820,0.77599238,934.51,934.01,1.587304]
[1768394891021,1.193,935.26,934.01,1.587304]
[1768394891225,0.77668856,935.25,934.01,1.587304]
[1768394891425,0.77668864,935.24,934.01,1.587304]
[1768394891621,0.77668864,935.23,934.01,1.587304]
[1768394891924,0.77668864,935.22,934.01,1.587304]
[1768394892121,0.77668864,935.21,934.01,1.587304]
[1768394892420,0.77668864,935.2,934.01,1.587304]
[1768394892624,0.77668864,935.19,934.01,1.587304]
[1768394892821,0.77668864,935.18,934.01,1.587304]
[1768394893022,0.77668864,935.17,934.01,1.587304]
[1768394893223,0.77668864,935.16,934.01,1.587304]
[1768394893422,0.77668864,935.15,934.01,1.587304]
[1768394893626,0.77668864,935.14,934.01,1.587304]
[1768394893921,0.77668864,935.13,934.01,1.587304]
[1768394894121,0.77668864,935.12,934.01,1.587304]
[1768394894321,1.193,935.26,934.01,1.587304]
[1768394894322,0.77668864,935.11,934.01,1.587304]
[1768394894525,0.77668864,935.1,934.01,1.587304]
[1768394894721,0.77668864,935.09,934.01,1.587304]
[1768394894925,0.77668864,935.08,934.01,1.587304]
[1768394895121,0.77668864,935.07,934.01,1.587304]
[1768394895324,0.77668864,935.06,934.01,1.587304]
[1768394895624,0.77668864,935.05,934.01,1.587304]
[1768394895826,0.77668864,935.04,934.01,1.587304]
[1768394896026,0.77668864,935.03,934.01,1.587304]
[1768394896326,0.77668864,935.02,934.01,1.587304]
[1768394896622,0.77668864,935.01,934.01,1.587304]
[1768394896924,0.77668864,935.0,933.97,1.587304]
[1768394897121,0.77668864,934.99,933.96,1.587304]
[1768394897426,0.77668864,934.98,933.96,1.587304]
[1768394897626,0.77668864,934.97,933.96,1.587304]
[1768394897823,0.77668864,934.96,933.96,1.587304]
[1768394898025,0.77668864,934.95,933.96,1.587304]
[1768394898225,0.77668864,934.94,933.96,1.587304]
[1768394898424,0.77668864,934.93,933.96,1.587304]
[1768394898622,0.77668864,934.92,933.96,1.587304]
[1768394898823,0.77668864,934.91,933.96,1.587304]
[1768394899020,0.77668864,934.9,933.96,1.587304]
[1768394899224,0.77668864,934.89,933.96,1.587304]
[1768394899427,0.77668864,934.88,933.96,1.587304]
[1768394899627,0.77668864,934.87,933.96,1.587304]
[1768394899828,0.77668864,934.86,933.96,1.587304]
[1768394900024,0.77668864,934.85,933.96,1.587304]
[1768394900225,0.77668864,934.84,933.92,1.587304]
[1768394900425,0.77668864,934.83,933.92,1.587304]
[1768394900625,0.77668864,934.82,933.92,1.587304]
[1768394900829,0.77668864,934.81,933.92,1.587304]
[1768394901027,0.77668864,934.8,933.92,1.587304]
[1768394901230,0.77668864,934.79,933.92,1.587304]
[1768394901531,0.77668864,934.78,933.92,1.587304]
[1768394901726,0.77668864,934.77,933.92,1.587304]
[1768394901930,0.77668864,934.76,933.92,1.587304]
[1768394902230,0.77668864,934.75,933.91,1.587304]
[1768394902526,0.77668864,934.74,933.91,1.587304]
[1768394902728,0.77668864,934.73,933.91,1.587304]
[1768394902930,1.193,935.26,933.91,1.587304]
[1768394902931,0.77668864,934.72,933.91,1.587304]
[1768394903128,0.77668864,934.71,933.91,1.587304]
[1768394903330,0.77668864,934.7,933.91,1.587304]
[1768394903530,0.77668864,934.69,933.91,1.587304]
[1768394903731,0.77668864,934.68,933.91,1.587304]
[1768394903928,0.77668864,934.67,933.91,1.587304]
[1768394904129,0.77668864,934.66,933.91,1.587304]
[1768394904328,0.77668864,934.65,933.91,1.587304]
[1768394904532,0.77668864,934.64,933.91,1.587304]
[1768394904734,0.77668864,934.63,933.91,1.587304]
[1768394904934,0.77668864,934.62,933.91,1.587304]
[1768394905233,0.77668864,934.61,933.91,1.587304]
[1768394905434,0.77668864,934.6,933.91,1.587304]
[1768394905632,0.77668864,934.59,933.91,1.587304]
[1768394905831,0.77668864,934.58,933.91,1.587304]
[1768394906037,0.77668864,934.57,933.91,1.587304]
[1768394906234,0.77668864,934.56,933.9,1.587304]
[1768394906434,0.77668864,934.55,933.9,1.587304]
[1768394906638,0.77668864,934.54,933.9,1.587304]
[1768394906834,0.77668864,934.53,933.9,1.587304]
[1768394907034,0.77668864,934.52,933.9,1.587304]
[1768394907235,0.77668864,934.51,933.9,1.587304]
[1768394907438,0.77668864,934.5,933.9,1.587304]
[1768394907635,0.77668864,934.49,933.9,1.587304]
[1768394907841,0.77668864,934.48,933.9,1.587304]
[1768394908137,0.77668864,934.47,933.9,1.587304]
[1768394908336,1.193,935.26,933.9,1.587304]
[1768394908540,0.77600844,935.25,933.9,1.587304]
[1768394908736,0.77600844,935.24,933.9,1.587304]
[1768394909036,0.77600844,935.23,933.9,1.587304]
[1768394909239,0.77600844,935.22,933.9,1.587304]
[1768394909440,0.77600844,935.21,933.9,1.587304]
[1768394909637,0.77600844,935.2,933.9,1.587304]
[1768394909839,0.77600844,935.19,933.9,1.587304]
[1768394910042,0.77600844,935.18,933.9,1.587304]
[1768394910239,0.77600844,935.17,933.9,1.587304]
[1768394910440,0.77600844,935.16,933.9,1.587304]
[1768394910641,0.77600844,935.15,933.9,1.587304]
[1768394910840,0.77600844,935.14,933.9,1.587304]
[1768394911042,0.77600844,935.13,933.9,1.587304]
[1768394911244,0.77600844,935.12,933.9,1.587304]
[1768394911444,0.77600844,935.11,933.9,1.587304]
[1768394911642,0.77600844,935.1,933.9,1.587304]
[1768394911841,0.77600844,935.09,933.9,1.587304]
[1768394912039,0.77600844,935.08,933.9,1.587304]
[1768394912245,0.77600844,935.07,933.89,1.587304]
[1768394912446,0.77600844,935.06,933.89,1.587304]
[1768394912645,0.77600844,935.05,933.89,1.587304]
[1768394912945,0.77600844,935.04,933.89,1.587304]
[1768394913246,0.77600844,935.03,933.89,1.587304]
[1768394913445,0.77600844,935.02,933.89,1.587304]
[1768394913646,0.77600844,935.01,933.89,1.587304]
[1768394913846,0.77600844,935.0,933.89,1.587304]
[1768394914142,0.77600844,934.99,933.89,1.587304]
[1768394914441,0.77600844,934.98,933.89,1.587304]
[1768394914647,0.77600844,934.97,933.9,1.587304]
[1768394914849,0.77600844,934.96,933.9,1.587304]
[1768394915045,0.77600844,934.95,933.9,1.587304]
[1768394915244,0.77600844,934.94,933.9,1.587304]
[1768394915450,0.77600844,934.93,933.9,1.587304]
[1768394915744,0.77600844,934.92,933.9,1.587304]
[1768394915948,0.77600844,934.91,933.9,1.587304]
[1768394916146,0.77600844,934.9,933.9,1.587304]
[1768394916450,0.77600844,934.89,933.9,1.587304]
[1768394916749,0.77600844,934.88,933.9,1.587304]
[1768394916949,0.77600844,934.87,933.9,1.587304]
[1768394917249,0.77600844,934.86,933.9,1.587304]
[1768394917450,0.77600844,934.85,933.9,1.587304]
[1768394917648,0.77600844,934.84,933.9,1.587304]
[1768394917946,0.77600844,934.83,933.9,1.587304]
[1768394918250,0.77600844,934.82,933.9,1.587304]
[1768394918446,0.77600844,934.81,933.9,1.587304]
[1768394918648,0.77600844,934.8,933.9,1.587304]
[1768394918848,0.77600844,934.79,933.9,1.587304]
[1768394919049,0.77600844,934.78,933.9,1.587304]
[1768394919250,0.77600844,934.77,933.9,1.587304]
[1768394919451,0.77600844,934.76,933.9,1.587304]
[1768394919650,0.77600844,934.75,933.9,1.587304]
[1768394919849,0.77600844,934.74,933.9,1.587304]
[1768394920054,0.77600844,934.73,933.9,1.587304]
[1768394920250,0.77600844,934.72,933.9,1.587304]
[1768394920549,0.77600844,934.71,933.9,1.587304]
[1768394920754,0.77600844,934.7,933.9,1.587304]
[1768394920954,0.77600844,934.69,933.9,1.587304]
[1768394921252,0.77600844,934.68,933.9,1.587304]
[1768394921450,0.77600844,934.67,933.9,1.587304]
[1768394921651,0.77600844,934.66,933.9,1.587304]
[1768394921854,0.77600844,934.65,933.9,1.587304]
[1768394922056,0.77600844,934.64,933.9,1.587304]
[1768394922252,0.77600844,934.63,933.89,1.587304]
[1768394922455,0.77600844,934.62,933.89,1.587304]
[1768394922656,0.77600844,934.61,933.89,1.587304]
[1768394922854,0.77600844,934.6,933.89,1.587304]
[1768394923153,0.77600844,934.59,933.89,1.587304]
[1768394923459,0.77600844,934.58,933.89,1.587304]
[1768394923659,0.77600844,934.57,933.89,1.587304]
[1768394923861,0.77600844,934.56,933.89,1.587304]
[1768394924155,0.77600844,934.55,933.89,1.587304]
[1768394924355,0.77600844,934.54,933.89,1.587304]
[1768394924557,0.77600844,934.53,933.89,1.587304]
[1768394924859,0.77600844,934.52,933.89,1.587304]
[1768394925055,0.77600844,934.51,933.89,1.587304]
[1768394925257,0.77600844,934.5,933.89,1.587304]
[1768394925458,0.77600844,934.49,933.89,1.587304]
[1768394925660,0.77600844,934.48,933.89,1.587304]
[1768394925861,1.067,934.83,933.89,1.587304]
[1768394926062,0.77569404,934.82,933.89,1.587304]
[1768394926258,0.77569404,934.81,933.89,1.587304]
[1768394926563,0.77569404,934.8,933.89,1.587304]
[1768394926764,0.77569404,934.79,933.89,1.587304]
[1768394927060,0.77569404,934.78,933.89,1.587304]
[1768394927259,0.77569404,934.77,933.89,1.587304]
[1768394927463,0.77569404,934.76,933.89,1.587304]
[1768394927762,0.77569404,934.75,933.89,1.587304]
[1768394927962,0.77569404,934.74,933.89,1.587304]
[1768394928160,0.77569404,934.73,933.89,1.587304]
[1768394928359,0.77569404,934.72,933.89,1.587304]
[1768394928562,0.77569404,934.71,933.89,1.587304]
[1768394928763,0.77569404,934.7,933.89,1.587304]
[1768394928964,0.77569404,934.69,933.89,1.587304]
[1768394929260,0.77569404,934.68,933.81,1.587304]
[1768394929461,0.77569404,934.67,933.77,1.587304]
[1768394929759,0.77569404,934.66,933.77,1.587304]
[1768394929963,0.77569404,934.65,933.77,1.587304]
[1768394930161,0.77569404,934.64,933.77,1.587304]
[1768394930366,0.77569404,934.63,933.77,1.587304]
[1768394930661,0.77569404,934.62,933.77,1.587304]
[1768394930865,0.77569404,934.61,933.77,1.587304]
[1768394931061,0.77569404,934.6,933.77,1.587304]
[1768394931265,0.77569404,934.59,933.76,1.587304]
[1768394931462,0.77569404,934.58,933.76,1.587304]
[1768394931662,0.77569404,934.57,933.76,1.587304]
[1768394931962,0.77569404,934.56,933.76,1.587304]
[1768394932161,0.77569404,934.55,933.76,1.587304]
[1768394932464,0.77569404,934.54,933.76,1.587304]
[1768394932670,0.77569404,934.53,933.76,1.587304]
[1768394932867,0.77569404,934.52,933.76,1.587304]
[1768394933067,0.77569404,934.51,933.76,1.587304]
[1768394933271,0.77569404,934.5,933.75,1.587304]
[1768394933571,0.77569404,934.49,933.75,1.587304]
[1768394933766,0.77569404,934.48,933.75,1.587304]
[1768394933970,0.77569404,934.47,933.75,1.587304]
[1768394934167,0.77569404,934.46,933.75,1.587304]
[1768394934370,0.77569404,934.45,933.75,1.587304]
[1768394934572,0.77569404,934.44,933.75,1.587304]
[1768394934772,0.77569404,934.43,933.75,1.587304]
[1768394935072,0.77569404,934.42,933.75,1.587304]
[1768394935268,0.77569404,934.41,933.75,1.587304]
[1768394935572,0.77569404,934.4,933.75,1.587304]
[1768394935774,0.77569404,934.39,933.75,1.587304]
[1768394936068,0.01047475,935.33,933.74,1.587304]
[1768394936269,0.77525164,935.32,933.74,1.587304]
[1768394936473,0.77525164,935.31,933.74,1.587304]
[1768394936674,0.77525164,935.3,933.74,1.587304]
[1768394936872,0.77525164,935.29,933.74,1.587304]
[1768394937169,0.77525164,935.28,933.74,1.587304]
[1768394937370,0.77525164,935.27,933.74,1.587304]
[1768394937574,0.77525164,935.26,933.74,1.587304]
[1768394937774,0.77525164,935.25,933.74,1.587304]
[1768394938069,0.77525164,935.24,933.74,1.587304]
[1768394938374,0.77525164,935.23,933.74,1.587304]
[1768394938569,0.77525164,935.22,933.74,1.587304]
[1768394938773,0.77525164,935.21,933.74,1.587304]
[1768394938969,0.77525164,935.2,933.74,1.587304]
[1768394939171,0.77525164,935.19,933.74,1.587304]
[1768394939372,0.77525164,935.18,933.74,1.587304]
[1768394939569,0.77525164,935.17,933.74,1.587304]
[1768394939774,0.77525164,935.16,933.74,1.587304]
[1768394940075,0.77525164,935.15,933.74,1.587304]
[1768394940275,0.77525164,935.14,933.75,1.587304]
[1768394940475,0.77525164,935.13,933.75,1.587304]
[1768394940772,0.77525164,935.12,933.75,1.587304]
[1768394940974,0.77525164,935.11,933.75,1.587304]
[1768394941175,0.77525164,935.1,933.75,1.587304]
[1768394941375,0.77525164,935.09,933.71,1.587304]
[1768394941676,0.77525164,935.08,933.71,1.587304]
[1768394941971,0.77525164,935.07,933.71,1.587304]
[1768394942175,0.77525164,935.06,933.71,1.587304]
[1768394942475,0.77525164,935.05,933.7,1.587304]
[1768394942671,0.77525164,935.04,933.7,1.587304]
[1768394942972,0.77525164,935.03,933.69,1.587304]